bitfinex-derivatives/quotes_BTCF0:USTF0_20210102
["timestamp","ask_amount","ask_price","bid_price","bid_amount"]
[1609571570981,0.01,29735.0,29725.0,0.04140375]
[1609571571582,0.01,29735.0,29724.0,0.04140426]
[1609571571782,0.01,29735.0,29726.0,0.00038236]
[1609571571982,0.01,29735.0,29731.0,0.18043158]
[1609571572482,0.01795332,29735.0,29732.0,0.00038236]
[1609571574083,0.18043158,29733.0,29732.0,0.00038236]
[1609571574284,0.18043158,29733.0,29731.0,0.17043158]
[1609571580193,0.18043158,29733.0,29732.0,0.04101619]
[1609571580390,0.18043158,29733.0,29731.0,0.17043158]
[1609571580991,0.18043158,29733.0,29732.0,0.04101605]
[1609571581793,0.18043158,29733.0,29732.0,0.14051605]
[1609571582699,0.17838527,29733.0,29732.0,0.14051605]
[1609571584097,0.01795332,29735.0,29732.0,0.14051605]
[1609571584697,0.01795332,29735.0,29734.0,4.0958]
[1609571584896,0.01795332,29735.0,29734.0,4.13719491]
[1609571585499,0.01795332,29735.0,29734.0,5.13719491]
[1609571586100,0.01795332,29735.0,29734.0,5.31762649]
[1609571586800,0.01795332,29735.0,29734.0,4.31762649]
[1609571587000,0.1268,29740.0,29734.0,5.31762649]
[1609571587299,2.64434114,29744.0,29734.0,5.31762649]
[1609571587500,2.64434114,29744.0,29734.0,7.31926253]
[1609571587700,2.64434114,29744.0,29735.0,0.04139156]
[1609571588101,2.64434114,29744.0,29743.0,0.18043158]
[1609571588501,2.64434114,29744.0,29743.0,0.18081382]
[1609571592604,2.64434114,29744.0,29743.0,0.2218224]
[1609571593208,2.64229526,29744.0,29743.0,0.2218224]
[1609571593807,2.64229526,29744.0,29743.0,0.18081382]
[1609571606027,2.64229526,29744.0,29743.0,0.22182178]
[1609571617750,2.64024964,29744.0,29743.0,0.22182178]
[1609571623957,2.64024964,29744.0,29743.0,2.22518506]
[1609571624558,2.43571266,29744.0,29743.0,2.22518506]
[1609571625159,2.43571266,29744.0,29743.0,0.22182178]
[1609571629766,2.43571266,29744.0,29743.0,4.85902178]
[1609571644088,2.43571266,29744.0,29743.0,0.22182178]
[1609571647892,2.43571266,29744.0,29743.0,0.30381731]
[1609571648492,2.43571266,29744.0,29743.0,0.22182178]
[1609571648693,2.43571266,29744.0,29743.0,0.30381683]
[1609571650695,2.43571266,29744.0,29743.0,0.22182178]
[1609571650895,2.43571266,29744.0,29743.0,1.22182178]
[1609571651997,2.43571266,29744.0,29743.0,3.43189038]
[1609571652194,2.43571266,29744.0,29743.0,2.43189038]
[1609571652595,2.43571266,29744.0,29743.0,4.83872437]
[1609571660905,2.43571266,29744.0,29743.0,5.83872437]
[1609571661105,2.33541266,29744.0,29743.0,5.83872437]
[1609571661707,2.0286885,29744.0,29743.0,5.83872437]
[1609571661907,1.9955885,29744.0,29743.0,5.83872437]
[1609571662308,1.9955885,29744.0,29743.0,4.83872437]
[1609571663111,1.8854885,29744.0,29743.0,4.83872437]
[1609571663312,1.7917885,29744.0,29743.0,4.83872437]
[1609571663511,1.7884885,29744.0,29743.0,4.83872437]
[1609571663711,1.5859885,29744.0,29743.0,4.83872437]
[1609571664312,1.5798885,29744.0,29743.0,4.83872437]
[1609571665113,1.5763885,29744.0,29743.0,4.83872437]
[1609571665313,1.4265885,29744.0,29743.0,4.83872437]
[1609571666115,1.4265885,29744.0,29743.0,7.43990602]
[1609571666716,1.4164885,29744.0,29743.0,7.43990602]
[1609571667818,1.0267879,29744.0,29743.0,7.43990602]
[1609571668017,1.0167879,29744.0,29743.0,7.43990602]
[1609571669721,1.0033879,29744.0,29743.0,7.43990602]
[1609571669922,1.0033879,29744.0,29743.0,7.46990602]
[1609571670323,0.9258879,29744.0,29743.0,7.46990602]
[1609571670825,0.9193879,29744.0,29743.0,7.46990602]
[1609571671026,0.8876879,29744.0,29743.0,7.46990602]
[1609571671428,0.6590879,29744.0,29743.0,7.46990602]
[1609571671828,0.6401879,29744.0,29743.0,7.46990602]
[1609571672228,0.6401879,29744.0,29743.0,7.55188148]
[1609571672427,0.5556879,29744.0,29743.0,7.55188148]
[1609571673431,0.4661879,29744.0,29743.0,7.55188148]
[1609571673728,0.15948895,29744.0,29743.0,7.55188148]
[1609571674829,0.07648895,29744.0,29743.0,7.55188148]
[1609571675329,0.07648895,29744.0,29743.0,5.34181288]
[1609571675931,0.06718895,29744.0,29743.0,7.53573075]
[1609571676329,2.16573547,29745.0,29743.0,7.53573075]
[1609571676730,2.16573547,29745.0,29744.0,0.12334446]
[1609571678331,2.16573547,29745.0,29744.0,7.3012542]
[1609571679733,1.83373341,29745.0,29744.0,7.3012542]
[1609571679933,1.80033341,29745.0,29744.0,7.3012542]
[1609571680333,1.71733341,29745.0,29744.0,7.3012542]
[1609571680533,1.70733341,29745.0,29744.0,7.3012542]
[1609571680935,1.58163341,29745.0,29744.0,7.3012542]
[1609571681135,1.57153341,29745.0,29744.0,7.3012542]
[1609571681736,1.54143341,29745.0,29744.0,7.3012542]
[1609571681936,1.46533341,29745.0,29744.0,7.3012542]
[1609571682137,1.41513341,29745.0,29744.0,7.48168578]
[1609571682837,1.33213341,29745.0,29744.0,7.48168578]
[1609571683037,1.30193341,29745.0,29744.0,7.48168578]
[1609571683238,1.21893341,29745.0,29744.0,7.48168578]
[1609571683641,1.00873341,29745.0,29744.0,7.48168578]
[1609571683842,0.96853341,29745.0,29744.0,7.48168578]
[1609571684041,0.91483341,29745.0,29744.0,7.48168578]
[1609571684241,0.81683341,29745.0,29744.0,7.48168578]
[1609571684441,0.73123341,29745.0,29744.0,7.48168578]
[1609571684642,0.66623341,29745.0,29744.0,7.48168578]
[1609571684841,0.63653341,29745.0,29744.0,7.48168578]
[1609571685241,0.32983572,29745.0,29744.0,7.48168578]
[1609571685741,2.43757393,29757.0,29744.0,7.48168578]
[1609571686141,2.33437393,29757.0,29756.0,0.18043158]
[1609571686341,2.28117393,29757.0,29756.0,0.18043158]
[1609571686743,2.28117393,29757.0,29756.0,0.22180258]
[1609571687146,3.28117393,29757.0,29756.0,0.22180258]
[1609571688746,7.87417393,29757.0,29756.0,0.22180258]
[1609571689148,7.87417393,29757.0,29756.0,0.041371]
[1609571689545,7.87417393,29757.0,29751.0,0.04137871]
[1609571689747,8.87417393,29757.0,29751.0,0.04137871]
[1609571690046,0.18043158,29752.0,29751.0,0.04137871]
[1609571690246,1.0,29752.0,29751.0,0.04137871]
[1609571690448,3.28117393,29757.0,29751.0,0.04137871]
[1609571690847,3.28117393,29757.0,29751.0,5.15857871]
[1609571691148,3.28117393,29757.0,29752.0,0.04137643]
[1609571691348,3.28117393,29757.0,29753.0,0.0997]
[1609571691548,1.0,29756.0,29753.0,0.0997]
[1609571691747,1.0,29756.0,29754.0,0.04137504]
[1609571692148,1.0,29756.0,29755.0,0.18043158]
[1609571692348,2.28117393,29757.0,29755.0,0.18043158]
[1609571692547,2.28117393,29757.0,29755.0,0.22180609]
[1609571692748,2.28117393,29757.0,29756.0,0.04137075]
[1609571693948,2.19817393,29757.0,29756.0,0.04137075]
[1609571695650,3.19817393,29757.0,29756.0,0.04137075]
[1609571695850,2.19817393,29757.0,29756.0,0.04137075]
[1609571699153,2.11707393,29757.0,29756.0,0.04137075]
[1609571700655,2.11707393,29757.0,29756.0,1.04137075]
[1609571701255,2.11707393,29757.0,29756.0,1.12334589]
[1609571702657,3.11707393,29757.0,29756.0,1.12334589]
[1609571703655,2.11707393,29757.0,29756.0,1.12334589]
[1609571703857,3.11707393,29757.0,29756.0,1.12334589]
[1609571704857,2.11707393,29757.0,29756.0,1.12334589]
[1609571706461,0.89516348,29760.0,29756.0,1.12334589]
[1609571706962,0.89516348,29760.0,29757.0,0.12296305]
[1609571707166,0.89516348,29760.0,29757.0,0.12334509]
[1609571707865,1.0,29759.0,29757.0,0.12334509]
[1609571708264,1.0,29759.0,29758.0,0.18043158]
[1609571708665,0.89516348,29760.0,29758.0,0.18043158]
[1609571708866,0.89516348,29760.0,29758.0,0.22180116]
[1609571709067,0.89516348,29760.0,29759.0,0.00038202]
[1609571709267,0.89516348,29760.0,29759.0,0.04136869]
[1609571709867,0.89516348,29760.0,29759.0,0.14266869]
[1609571712972,0.89516348,29760.0,29758.0,0.18043158]
[1609571712973,0.89516348,29760.0,29753.0,0.99585885]
[1609571713174,0.89516348,29760.0,29757.0,0.08197193]
[1609571713373,0.89516348,29760.0,29754.0,0.12333996]
[1609571713772,0.89516348,29760.0,29758.0,0.041368]
[1609571713973,1.89516348,29760.0,29759.0,0.1002]
[1609571714173,1.89516348,29760.0,29759.0,0.14156839]
[1609571714373,1.89516348,29760.0,29759.0,0.32199997]
[1609571714973,1.89516348,29760.0,29759.0,0.22179997]
[1609571716675,1.91316348,29760.0,29759.0,0.22179997]
[1609571722088,1.91316348,29760.0,29759.0,0.04136839]
[1609571722289,2.09359506,29760.0,29759.0,0.04136839]
[1609571722489,1.91316348,29760.0,29759.0,0.04136839]
[1609571722690,1.91316348,29760.0,29750.0,0.04137383]
[1609571722890,4.6061,29754.0,29749.0,0.11648]
[1609571723089,1.0,29753.0,29743.0,0.03]
[1609571723289,1.0,29753.0,29751.0,0.04137631]
[1609571723490,1.0,29753.0,29743.0,0.03]
[1609571723491,1.0,29753.0,29750.0,0.04137691]
[1609571723691,1.0,29753.0,29752.0,0.04137768]
[1609571723991,1.0,29753.0,29751.0,0.17066864]
[1609571724192,1.0,29753.0,29752.0,0.04137888]
[1609571724395,1.18043158,29753.0,29752.0,0.04137888]
[1609571724595,6.17813158,29753.0,29752.0,0.04137888]
[1609571725194,1.18043158,29753.0,29752.0,0.04137888]
[1609571725595,1.18043158,29753.0,29752.0,0.00038211]
[1609571725795,1.18043158,29753.0,29752.0,0.04137924]
[1609571727895,1.18043158,29753.0,29752.0,0.0413778]
[1609571728096,0.18043158,29753.0,29752.0,0.0413778]
[1609571728395,0.18043158,29753.0,29752.0,0.22180938]
[1609571729597,1.18043158,29753.0,29752.0,0.22180938]
[1609571729798,1.18043158,29753.0,29743.0,0.03]
[1609571729997,6.31883158,29753.0,29751.0,0.1104]
[1609571730197,5.5089,29752.0,29751.0,0.1104]
[1609571730397,6.5089,29752.0,29751.0,0.1104]
[1609571730598,6.5089,29752.0,29751.0,0.04778217]
[1609571730797,6.65222,29752.0,29751.0,0.04778217]
[1609571730997,6.75212,29752.0,29751.0,0.00038217]
[1609571731400,7.04072,29752.0,29744.0,0.00038226]
[1609571731701,7.04072,29752.0,29732.0,0.18043158]
[1609571731900,0.00041018,29751.0,29721.0,4.1767]
[1609571732102,0.00041018,29751.0,29736.0,0.00038234]
[1609571732401,0.18043158,29737.0,29732.0,0.16487]
[1609571732901,1.18043158,29737.0,29733.0,0.00038235]
[1609571733502,0.6018,29736.0,29733.0,0.00038235]
[1609571733705,1.0,29736.0,29733.0,0.00038235]
[1609571734306,6.6384,29734.0,29733.0,0.00038235]
[1609571734503,6.81883158,29734.0,29726.0,0.00038235]
[1609571734807,5.81883158,29734.0,29733.0,0.00038235]
[1609571735014,0.18043158,29734.0,29727.0,0.00038235]
[1609571735209,0.01036081,29743.0,29727.0,0.00038235]
[1609571735414,0.01036081,29743.0,29726.0,4.29338235]
[1609571735611,0.01036081,29743.0,29728.0,0.00038233]
[1609571735812,0.01036081,29743.0,29727.0,0.0003823]
[1609571736214,0.01036081,29743.0,29729.0,0.0003823]
[1609571736416,1.01036081,29743.0,29740.0,0.18043158]
[1609571736609,1.0,29743.0,29740.0,0.18043158]
[1609571736907,1.0,29743.0,29741.0,0.0003823]
[1609571737309,0.13605,29744.0,29741.0,0.0003823]
[1609571737706,0.13605,29744.0,29742.0,0.00038231]
[1609571738208,0.13605,29744.0,29727.0,0.00038231]
[1609571738413,0.13605,29744.0,29731.0,0.18043158]
[1609571738815,0.292,29747.0,29732.0,0.0003823]
[1609571740209,0.292,29747.0,29732.0,0.0996823]
[1609571740411,0.292,29747.0,29746.0,0.18043158]
[1609571740910,0.292,29747.0,29746.0,0.18081382]
[1609571742715,0.292,29747.0,29746.0,0.18043158]
[1609571743713,1.292,29747.0,29746.0,0.18043158]
[1609571743914,1.292,29747.0,29746.0,0.18081381]
[1609571744415,1.292,29747.0,29746.0,0.00038223]
[1609571744818,1.292,29747.0,29740.0,0.00038223]
[1609571745719,1.0,29741.0,29740.0,0.00038223]
[1609571746419,1.18043158,29741.0,29740.0,0.00038223]
[1609571746920,1.18043158,29741.0,29739.0,0.00038319]
[1609571747723,1.0,29740.0,29739.0,0.00038319]
[1609571751328,1.0,29740.0,29737.0,0.00038321]
[1609571751530,1.0,29740.0,29739.0,0.00038321]
[1609571751732,1.0,29740.0,29736.0,0.18043158]
[1609571751733,0.18043158,29741.0,29738.0,0.00038321]
[1609571752027,0.18043158,29741.0,29739.0,0.00038321]
[1609571752527,0.18043158,29741.0,29737.0,0.00038321]
[1609571752734,0.18043158,29741.0,29740.0,0.00038321]
[1609571753029,0.18043158,29741.0,29736.0,0.18043158]
[1609571753030,0.18043158,29741.0,29737.0,0.00038321]
[1609571753333,0.18043158,29741.0,29740.0,0.00038321]
[1609571753533,0.18043158,29741.0,29738.0,0.00038321]
[1609571753731,1.18043158,29741.0,29738.0,0.00038321]
[1609571753931,1.18043158,29741.0,29737.0,0.00038321]
[1609571754130,1.18043158,29741.0,29739.0,0.00038321]
[1609571754330,1.18043158,29741.0,29738.0,0.00038321]
[1609571754629,1.18043158,29741.0,29737.0,0.00038321]
[1609571754930,6.76973158,29741.0,29739.0,0.00038321]
[1609571755129,6.76973158,29741.0,29737.0,0.00038321]
[1609571755430,6.76973158,29741.0,29740.0,0.00038321]
[1609571755731,5.76973158,29741.0,29738.0,0.00038321]
[1609571755931,5.76973158,29741.0,29740.0,0.00038321]
[1609571756330,5.76973158,29741.0,29739.0,0.00038321]
[1609571756530,5.76973158,29741.0,29740.0,0.00038321]
[1609571756931,0.18043158,29741.0,29740.0,0.00038321]
[1609571757131,0.18043158,29741.0,29737.0,0.00038321]
[1609571757331,0.18043158,29741.0,29740.0,0.00038321]
[1609571757533,4.13063158,29741.0,29738.0,0.00038319]
[1609571757933,4.13063158,29741.0,29740.0,0.00038319]
[1609571758133,4.13063158,29741.0,29739.0,0.00038317]
[1609571758335,4.13063158,29741.0,29737.0,0.00038317]
[1609571758534,3.9502,29741.0,29739.0,0.18043158]
[1609571758734,3.9502,29741.0,29740.0,0.00038317]
[1609571758935,3.9502,29741.0,29738.0,0.00038317]
[1609571759134,3.9502,29741.0,29740.0,0.00038317]
[1609571759334,3.9502,29741.0,29739.0,0.0003832]
[1609571759735,1.0,29740.0,29733.0,0.04139552]
[1609571760036,0.01,29736.0,29731.0,0.16854]
[1609571760236,0.01,29736.0,29734.0,0.00038326]
[1609571760436,0.02,29736.0,29732.0,0.00038328]
[1609571760636,0.02,29736.0,29733.0,0.18043158]
[1609571760838,0.02,29736.0,29735.0,0.00038328]
[1609571761036,0.02,29736.0,29734.0,0.00038328]
[1609571761236,0.02,29736.0,29735.0,0.00038328]
[1609571761736,0.02,29736.0,29733.0,0.17043158]
[1609571762136,0.02,29736.0,29735.0,0.00038326]
[1609571762337,0.02,29736.0,29734.0,0.00038326]
[1609571762538,0.02,29736.0,29735.0,0.00038326]
[1609571763238,0.02,29736.0,29734.0,0.00038326]
[1609571763440,0.02,29736.0,29735.0,0.00038326]
[1609571763940,0.02,29736.0,29734.0,0.00038326]
[1609571764138,0.02,29736.0,29735.0,0.00038326]
[1609571764440,0.02,29736.0,29734.0,0.00038326]
[1609571764641,0.18043158,29735.0,29734.0,0.00038326]
[1609571764840,0.18043158,29735.0,29733.0,0.17043158]
[1609571765040,0.18043158,29735.0,29734.0,0.00038327]
[1609571767341,0.80903158,29735.0,29734.0,0.00038327]
[1609571767741,1.80903158,29735.0,29734.0,0.00038327]
[1609571767942,1.18043158,29735.0,29732.0,0.00038331]
[1609571768142,1.18043158,29735.0,29734.0,0.00038331]
[1609571768343,1.18043158,29735.0,29733.0,0.00038329]
[1609571768743,4.2345,29734.0,29732.0,0.00038329]
[1609571768945,4.2345,29734.0,29731.0,0.11458]
[1609571769145,4.2345,29734.0,29725.0,0.12171]
[1609571769344,4.2345,29734.0,29733.0,0.0003833]
[1609571769545,1.18043158,29735.0,29732.0,0.00038332]
[1609571769744,0.18043158,29735.0,29733.0,0.00038332]
[1609571770346,4.9456,29734.0,29726.0,0.00038332]
[1609571770545,4.9456,29734.0,29725.0,0.12171]
[1609571770745,0.18043158,29726.0,29719.0,0.18043158]
[1609571771148,0.18043158,29726.0,29720.0,0.04141127]
[1609571771349,0.18043158,29726.0,29720.0,0.18903127]
[1609571771548,4.89073158,29726.0,29720.0,0.18903127]
[1609571771947,4.89073158,29726.0,29721.0,0.04141302]
[1609571772648,0.18043158,29722.0,29721.0,0.04141302]
[1609571773848,5.48463158,29722.0,29721.0,0.04141302]
[1609571774049,1.18043158,29722.0,29721.0,0.04141303]
[1609571774449,6.37073158,29722.0,29697.0,2.68437916]
[1609571774649,0.18043158,29698.0,29697.0,0.08207407]
[1609571774850,0.18043158,29698.0,29696.0,2.60364334]
[1609571775053,0.18043158,29698.0,29691.0,0.18043158]
[1609571775250,0.18043158,29698.0,29697.0,0.04143497]
[1609571775450,0.18043158,29698.0,29697.0,0.20849497]
[1609571775650,5.23293158,29698.0,29697.0,0.16706]
[1609571775851,0.18043158,29698.0,29697.0,0.16744365]
[1609571776051,5.78693158,29698.0,29697.0,0.16744365]
[1609571779857,5.78693158,29698.0,29697.0,0.16744373]
[1609571780058,5.78693158,29698.0,29697.0,0.16744376]
[1609571780358,0.18043158,29698.0,29697.0,0.16744376]
[1609571780758,0.18043158,29698.0,29697.0,0.34787534]
[1609571781360,0.18043158,29698.0,29697.0,0.16744376]
[1609571782761,0.18043158,29698.0,29697.0,0.34787534]
[1609571783762,1.18043158,29698.0,29697.0,0.16744376]
[1609571785768,0.18043158,29698.0,29697.0,0.16744376]
[1609571788771,0.18043158,29698.0,29697.0,0.34787534]
[1609571789474,0.18043158,29698.0,29697.0,0.16744376]
[1609571791777,1.20043158,29698.0,29697.0,0.16744376]
[1609571793781,0.20043158,29698.0,29697.0,0.16744376]
[1609571794480,0.20043158,29698.0,29697.0,0.14944376]
[1609571798993,0.02,29698.0,29697.0,0.14944376]
[1609571800294,0.02,29698.0,29697.0,0.19049169]
[1609571809803,0.0113,29698.0,29697.0,0.19049169]
[1609571814109,0.0113,29698.0,29697.0,0.14944376]
[1609571815513,4.4577,29698.0,29697.0,0.14944376]
[1609571815911,5.4577,29698.0,29697.0,0.00038376]
[1609571816513,5.4577,29698.0,29691.0,0.14293]
[1609571816514,1.0113,29698.0,29692.0,0.00038226]
[1609571816714,1.0113,29698.0,29697.0,0.00038226]
[1609571816915,1.0113,29698.0,29693.0,0.00038226]
[1609571817314,1.0113,29698.0,29697.0,0.00038224]
[1609571817515,1.0113,29698.0,29692.0,0.04144567]
[1609571817713,0.0113,29698.0,29697.0,0.00038224]
[1609571817914,1.0113,29698.0,29697.0,0.00038224]
[1609571818115,1.0113,29698.0,29692.0,0.04106343]
[1609571818116,1.0113,29698.0,29693.0,0.00038224]
[1609571818317,1.0113,29698.0,29697.0,0.00038224]
[1609571818515,1.0113,29698.0,29694.0,0.00038224]
[1609571818920,1.0113,29698.0,29697.0,0.00038222]
[1609571819116,1.0113,29698.0,29695.0,0.00038222]
[1609571819316,1.0113,29698.0,29697.0,0.00038222]
[1609571819717,0.0113,29698.0,29696.0,0.00038222]
[1609571819917,0.0113,29698.0,29693.0,0.04106218]
[1609571819918,0.0113,29698.0,29697.0,0.00038222]
[1609571820519,0.0113,29698.0,29693.0,0.0414444]
[1609571820718,0.17838,29698.0,29697.0,0.00038224]
[1609571820920,0.35881158,29698.0,29695.0,0.18043158]
[1609571821319,0.35881158,29698.0,29697.0,0.00038224]
[1609571821519,0.35881158,29698.0,29696.0,0.04144554]
[1609571821720,0.35881158,29698.0,29697.0,0.00038222]
[1609571822322,0.35881158,29698.0,29696.0,0.04144552]
[1609571822521,0.35881158,29698.0,29697.0,0.00038222]
[1609571822822,0.35881158,29698.0,29696.0,0.04144552]
[1609571823022,0.35881158,29698.0,29697.0,0.00038222]
[1609571823725,0.35881158,29698.0,29696.0,0.04144552]
[1609571823925,0.35881158,29698.0,29697.0,0.00038222]
[1609571824427,0.35881158,29698.0,29696.0,0.04144552]
[1609571824627,0.35881158,29698.0,29697.0,0.00038222]
[1609571825229,0.35881158,29698.0,29696.0,0.04144552]
[1609571825429,0.35881158,29698.0,29697.0,0.00038224]
[1609571825831,0.35881158,29698.0,29696.0,0.04144554]
[1609571826033,0.35881158,29698.0,29697.0,0.00038224]
[1609571826632,0.35881158,29698.0,29696.0,0.04144554]
[1609571826835,0.35881158,29698.0,29697.0,0.00038224]
[1609571827432,0.35881158,29698.0,29696.0,0.04144554]
[1609571827633,0.35881158,29698.0,29697.0,0.00038224]
[1609571828135,0.35881158,29698.0,29696.0,0.04144554]
[1609571828335,0.35881158,29698.0,29697.0,0.00038224]
[1609571828936,0.35881158,29698.0,29696.0,0.04144554]
[1609571829137,0.35881158,29698.0,29697.0,0.00038224]
[1609571829437,0.35881158,29698.0,29696.0,0.04144556]
[1609571829739,0.35881158,29698.0,29697.0,0.00038226]
[1609571830240,0.35881158,29698.0,29696.0,0.04144556]
[1609571830438,0.35881158,29698.0,29697.0,0.00038224]
[1609571831039,0.35881158,29698.0,29696.0,0.04144554]
[1609571831241,0.35881158,29698.0,29697.0,0.00038224]
[1609571831843,0.35881158,29698.0,29696.0,0.04144554]
[1609571832044,0.35881158,29698.0,29697.0,0.00038224]
[1609571832645,0.35881158,29698.0,29696.0,0.04144554]
[1609571832845,0.35881158,29698.0,29697.0,0.00038224]
[1609571833445,0.35881158,29698.0,29696.0,0.04144554]
[1609571833646,0.35881158,29698.0,29697.0,0.00038224]
[1609571834048,0.35881158,29698.0,29696.0,0.04144554]
[1609571834247,0.35881158,29698.0,29697.0,0.00038224]
[1609571834747,0.35881158,29698.0,29696.0,0.04144554]
[1609571835049,0.35881158,29698.0,29697.0,0.00038224]
[1609571835248,1.05601158,29698.0,29697.0,0.00038224]
[1609571835648,1.05601158,29698.0,29696.0,0.04144554]
[1609571835847,2.05601158,29698.0,29697.0,0.00038227]
[1609571836451,2.05601158,29698.0,29688.0,0.04145098]
[1609571836649,2.05601158,29698.0,29697.0,0.00038227]
[1609571836850,2.05601158,29698.0,29689.0,0.00038227]
[1609571837051,0.18043158,29690.0,29689.0,0.00038227]
[1609571837251,0.18043158,29690.0,29688.0,0.22188256]
[1609571837451,0.18043158,29690.0,29688.0,0.22150029]
[1609571837651,0.18043158,29690.0,29689.0,0.04145003]
[1609571841757,1.18043158,29690.0,29689.0,0.04145003]
[1609571842355,1.18043158,29690.0,29689.0,0.04106776]
[1609571842556,1.18043158,29690.0,29689.0,0.04145003]
[1609571845460,1.18043158,29690.0,29686.0,0.04145548]
[1609571845659,1.18043158,29690.0,29689.0,0.04145544]
[1609571845861,1.18043158,29690.0,29687.0,0.04145639]
[1609571846263,1.18043158,29690.0,29689.0,0.04145612]
[1609571846462,1.18043158,29690.0,29688.0,0.04145605]
[1609571846662,1.18043158,29690.0,29689.0,0.0414575]
[1609571846864,1.18043158,29690.0,29673.0,0.0995]
[1609571847064,1.0,29690.0,29683.0,0.18043158]
[1609571847463,1.0,29690.0,29684.0,0.04145826]
[1609571847762,5.3281,29693.0,29684.0,0.04145826]
[1609571849064,0.18043158,29685.0,29684.0,0.04145826]
[1609571849264,0.31486158,29685.0,29684.0,0.04145826]
[1609571856876,0.13443,29685.0,29684.0,0.04145826]
[1609571857081,0.28716158,29690.0,29684.0,0.04145826]
[1609571857291,0.10673,29690.0,29684.0,0.04145826]
[1609571859179,0.10673,29690.0,29689.0,0.18043158]
[1609571859678,0.10673,29690.0,29689.0,0.22188457]
[1609571862180,0.18043158,29695.0,29689.0,0.22188457]
[1609571862581,0.18043158,29695.0,29690.0,0.04145398]
[1609571863181,0.2995,29697.0,29693.0,0.18043158]
[1609571863382,0.2995,29697.0,29694.0,0.041454]
[1609571863582,0.2995,29697.0,29694.0,0.0003823]
[1609571863782,1.2995,29697.0,29694.0,0.0003823]
[1609571863981,1.2995,29697.0,29695.0,0.00038232]
[1609571864383,1.2995,29697.0,29694.0,0.04145423]
[1609571864682,1.2995,29697.0,29696.0,0.00038232]
[1609571864884,1.2995,29697.0,29695.0,0.00038232]
[1609571865084,1.2995,29697.0,29696.0,0.18043158]
[1609571865284,1.2995,29697.0,29696.0,0.1808139]
[1609571865486,1.2995,29697.0,29696.0,0.22188514]
[1609571865887,0.2995,29697.0,29696.0,0.22188514]
[1609571875195,0.0113,29698.0,29696.0,0.22188514]
[1609571875595,0.0113,29698.0,29697.0,0.04144391]
[1609571878099,0.01038199,29707.0,29697.0,0.04144391]
[1609571878301,0.73304994,29710.0,29697.0,0.04144391]
[1609571878302,0.291685,29709.0,29697.0,0.04144391]
[1609571878801,0.291685,29709.0,29697.0,1.04144391]
[1609571879001,0.2813,29709.0,29697.0,1.04144391]
[1609571879201,0.2813,29709.0,29708.0,0.18043158]
[1609571879802,0.2813,29709.0,29708.0,0.18081135]
[1609571883209,0.2464,29709.0,29708.0,0.18081135]
[1609571885613,0.2464,29709.0,29708.0,0.22186653]
[1609571887512,0.2464,29709.0,29708.0,0.18081135]
[1609571887712,0.2464,29709.0,29708.0,0.22186582]
[1609571887914,0.234,29709.0,29708.0,0.22186582]
[1609571888513,0.234,29709.0,29708.0,0.18081135]
[1609571889715,0.18043158,29712.0,29708.0,0.22186545]
[1609571890117,0.18043158,29712.0,29709.0,0.00037973]
[1609571890315,0.18043158,29712.0,29709.0,0.04143211]
[1609571890917,0.18043158,29712.0,29709.0,0.00037973]
[1609571891116,0.18043158,29712.0,29710.0,0.00037973]
[1609571891317,0.18043158,29712.0,29711.0,0.18043158]
[1609571891720,0.18043158,29712.0,29711.0,0.18081131]
[1609571894720,0.18043158,29712.0,29711.0,0.00037973]
[1609571895419,0.18043158,29712.0,29710.0,0.00037973]
[1609571895821,0.18043158,29712.0,29711.0,0.00037973]
[1609571896222,0.18043158,29712.0,29710.0,0.00037973]
[1609571896422,0.18043158,29712.0,29711.0,0.00037973]
[1609571897022,0.18043158,29712.0,29710.0,0.00037973]
[1609571897223,0.18043158,29712.0,29711.0,0.00037973]
[1609571897824,0.18043158,29712.0,29710.0,0.00037975]
[1609571898024,0.18043158,29712.0,29711.0,0.00037975]
[1609571898626,0.18043158,29712.0,29710.0,0.00037975]
[1609571898827,0.18043158,29712.0,29711.0,0.00037975]
[1609571899228,5.41223158,29712.0,29711.0,0.00037975]
[1609571899430,5.41223158,29712.0,29705.0,0.18043158]
[1609571899629,5.41223158,29712.0,29711.0,0.00037977]
[1609571899830,6.41223158,29712.0,29711.0,0.00037977]
[1609571900029,6.41223158,29712.0,29706.0,0.00037977]
[1609571901029,6.41223158,29712.0,29704.0,0.04143818]
[1609571901229,6.41223158,29712.0,29707.0,0.00037977]
[1609571901430,6.2318,29712.0,29707.0,0.00037977]
[1609571901629,6.2318,29712.0,29704.0,0.18081137]
[1609571901830,6.2318,29712.0,29708.0,0.00037979]
[1609571902031,6.2318,29712.0,29705.0,0.00037979]
[1609571903334,0.18043158,29706.0,29705.0,0.00037979]
[1609571903734,0.18043158,29706.0,29702.0,0.04144022]
[1609571903935,0.18043158,29706.0,29705.0,0.00037979]
[1609571904135,0.18043158,29706.0,29703.0,0.00037979]
[1609571904538,0.18043158,29706.0,29705.0,0.00037979]
[1609571904735,0.18043158,29706.0,29702.0,0.04144022]
[1609571904936,0.18043158,29706.0,29705.0,0.00037979]
[1609571905235,0.18043158,29706.0,29703.0,0.00037979]
[1609571905436,0.18043158,29706.0,29705.0,0.18081137]
[1609571905736,0.18043158,29706.0,29705.0,0.22187169]
[1609571907638,0.18043158,29706.0,29705.0,0.04144011]
[1609571908238,0.18043158,29706.0,29699.0,0.04144127]
[1609571908439,0.18043158,29706.0,29705.0,0.04144111]
[1609571908638,0.18043158,29706.0,29700.0,0.04144053]
[1609571908939,0.18043158,29706.0,29699.0,0.04144045]
[1609571909139,0.18043158,29706.0,29701.0,0.04144012]
[1609571909339,0.18043158,29706.0,29703.0,0.18043158]
[1609571909741,0.18043158,29706.0,29704.0,0.04144087]
[1609571917651,0.2861,29711.0,29704.0,0.04144087]
[1609571919450,0.2861,29711.0,29710.0,0.18043158]
[1609571920053,0.2861,29711.0,29710.0,0.22186702]
[1609571921452,0.46653158,29711.0,29710.0,0.22186702]
[1609571932663,0.46653158,29711.0,29710.0,0.04143544]
[1609571933364,0.46653158,29711.0,29707.0,0.18043158]
[1609571933565,0.46653158,29711.0,29710.0,0.04143722]
[1609571933765,1.0,29710.0,29707.0,0.18043158]
[1609571934368,1.0,29710.0,29708.0,0.04143693]
[1609571934566,4.4952,29709.0,29708.0,0.04143693]
[1609571936770,0.46653158,29711.0,29708.0,0.04143693]
[1609571937471,0.46653158,29711.0,29710.0,0.18043158]
[1609571937772,0.46653158,29711.0,29710.0,0.22186724]
[1609571939073,0.46653158,29711.0,29710.0,0.22186733]
[1609571951691,0.2861,29711.0,29710.0,0.22186733]
[1609571952593,0.16733,29713.0,29710.0,0.22186733]
[1609571952794,0.18043158,29714.0,29710.0,0.22186733]
[1609571953195,0.18043158,29714.0,29711.0,0.04142925]
[1609571953599,0.18043158,29714.0,29713.0,0.18043158]